[Event "Titled Tuesday Blitz June 20 Early 2023"]
[White "Lenaerts, Lennert"]
[Black "Andreev, Konstantin"]
[WhiteFideId "211435"]
[BlackFideId "24239305"]
[WhiteElo "2334"]
[BlackElo "2106"]
[Result "1-0"]
[Round "3"]
[TimeControl "180+2"]
[Date "2023.06.20"]
[WhiteClock "0:02:16"]
[BlackClock "0:00:43"]
[Board "115"]

1. d4 {[%clk 0:03:00]}  Nf6 {[%clk 0:02:49]} 2. c4 {[%clk 0:02:56]}  e6 {[%clk 0:02:48]} 3. Nc3 {[%clk 0:02:56]}  Bb4 {[%clk 0:02:48]} 4. g3 {[%clk 0:02:57]}  O-O {[%clk 0:02:46]} 5. Bg2 {[%clk 0:02:57]}  d5 {[%clk 0:02:41]} 6. Nf3 {[%clk 0:02:58]}  dxc4 {[%clk 0:02:39]} 7. O-O {[%clk 0:02:58]}  Bxc3 {[%clk 0:02:31]} 8. bxc3 {[%clk 0:02:58]}  b5 {[%clk 0:02:26]} 9. a4 {[%clk 0:02:57]}  c6 {[%clk 0:02:26]} 10. Ne5 {[%clk 0:02:56]}  Nd5 {[%clk 0:02:27]} 11. Qc2 {[%clk 0:02:55]}  a5 {[%clk 0:02:26]} 12. e4 {[%clk 0:02:52]}  Nf6 {[%clk 0:02:26]} 13. Rd1 {[%clk 0:02:53]}  Bb7 {[%clk 0:02:22]} 14. Rb1 {[%clk 0:02:53]}  Qb6 {[%clk 0:02:14]} 15. Nxc4 {[%clk 0:02:53]}  Qa6 {[%clk 0:02:13]} 16. Nd6 {[%clk 0:02:52]}  Nbd7 {[%clk 0:02:12]} 17. e5 {[%clk 0:02:46]}  Nd5 {[%clk 0:02:11]} 18. axb5 {[%clk 0:02:46]}  cxb5 {[%clk 0:02:09]} 19. Nxb7 {[%clk 0:02:46]}  Qxb7 {[%clk 0:01:50]} 20. c4 {[%clk 0:02:47]}  Rac8 {[%clk 0:01:50]} 21. Qd3 {[%clk 0:02:47]}  bxc4 {[%clk 0:01:48]} 22. Rxb7 {[%clk 0:02:47]}  cxd3 {[%clk 0:01:48]} 23. Rxd7 {[%clk 0:02:48]}  Nc3 {[%clk 0:01:49]} 24. Rxd3 {[%clk 0:02:40]}  Ne2+ {[%clk 0:01:48]} 25. Kf1 {[%clk 0:02:41]}  Nxc1 {[%clk 0:01:48]} 26. Ra3 {[%clk 0:02:41]}  Rc2 {[%clk 0:01:43]} 27. Be4 {[%clk 0:02:39]}  Ra2 {[%clk 0:01:36]} 28. Rxa2 {[%clk 0:02:38]}  Nxa2 {[%clk 0:01:36]} 29. Ra7 {[%clk 0:02:38]}  Nc3 {[%clk 0:01:36]} 30. Bc6 {[%clk 0:02:38]}  g6 {[%clk 0:01:03]} 31. Rxa5 {[%clk 0:02:34]}  Rd8 {[%clk 0:01:02]} 32. Rc5 {[%clk 0:02:34]}  Na2 {[%clk 0:00:58]} 33. Rc4 {[%clk 0:02:30]}  Rb8 {[%clk 0:00:55]} 34. d5 {[%clk 0:02:27]}  exd5 {[%clk 0:00:51]} 35. Bxd5 {[%clk 0:02:28]}  Nb4 {[%clk 0:00:52]} 36. Be4 {[%clk 0:02:27]}  Rb5 {[%clk 0:00:51]} 37. f4 {[%clk 0:02:26]}  Na6 {[%clk 0:00:47]} 38. Rc8+ {[%clk 0:02:22]}  Kg7 {[%clk 0:00:47]} 39. Bd3 {[%clk 0:02:23]}  Rb6 {[%clk 0:00:47]} 40. Bc4 {[%clk 0:02:17]}  Nc5 {[%clk 0:00:43]} 41. Rxc5 {[%clk 0:02:16]} 1-0


[Site "https://www.chess.com"]

[Event "Titled Tuesday Blitz June 20 Early 2023"]
[White "Taichman, Ori"]
[Black "Womacka, Mathias"]
[WhiteFideId "2804069"]
[BlackFideId "4611390"]
[WhiteElo "2237"]
[BlackElo "2377"]
[Result "1-0"]
[Round "3"]
[TimeControl "180+2"]
[Date "2023.06.20"]
[WhiteClock "0:00:01"]
[BlackClock "0:00:00"]
[Board "116"]

1. e4 {[%clk 0:03:00]}  c5 {[%clk 0:02:58]} 2. Nf3 {[%clk 0:02:54]}  d6 {[%clk 0:02:58]} 3. d4 {[%clk 0:02:54]}  cxd4 {[%clk 0:02:59]} 4. Nxd4 {[%clk 0:02:55]}  Nf6 {[%clk 0:02:59]} 5. Nc3 {[%clk 0:02:52]}  a6 {[%clk 0:03:00]} 6. Bg5 {[%clk 0:02:53]}  e6 {[%clk 0:02:59]} 7. f4 {[%clk 0:02:49]}  h6 {[%clk 0:02:59]} 8. Bh4 {[%clk 0:02:48]}  Qb6 {[%clk 0:03:00]} 9. Qd2 {[%clk 0:02:46]}  Qxb2 {[%clk 0:02:59]} 10. Rb1 {[%clk 0:02:47]}  Qa3 {[%clk 0:02:59]} 11. e5 {[%clk 0:02:47]}  dxe5 {[%clk 0:02:58]} 12. fxe5 {[%clk 0:02:48]}  g5 {[%clk 0:02:59]} 13. Bg3 {[%clk 0:02:43]}  Nh5 {[%clk 0:02:58]} 14. Bf2 {[%clk 0:02:36]}  Bg7 {[%clk 0:02:54]} 15. h4 {[%clk 0:02:31]}  Bxe5 {[%clk 0:02:40]} 16. hxg5 {[%clk 0:02:24]}  Ng3 {[%clk 0:02:37]} 17. Rxh6 {[%clk 0:02:22]}  Rxh6 {[%clk 0:02:36]} 18. gxh6 {[%clk 0:02:21]}  Nc6 {[%clk 0:02:35]} 19. h7 {[%clk 0:01:55]}  Nxf1 {[%clk 0:02:30]} 20. Kxf1 {[%clk 0:01:19]}  Bd7 {[%clk 0:02:26]} 21. Rxb7 {[%clk 0:01:07]}  O-O-O {[%clk 0:02:24]} 22. Rb3 {[%clk 0:00:48]}  Qe7 {[%clk 0:01:43]} 23. Nf3 {[%clk 0:00:20]}  Bh8 {[%clk 0:01:32]} 24. Qe2 {[%clk 0:00:19]}  Nb8 {[%clk 0:01:12]} 25. Qc4+ {[%clk 0:00:18]}  Bc6 {[%clk 0:00:54]} 26. Rxb8+ {[%clk 0:00:17]}  Kxb8 {[%clk 0:00:51]} 27. Qxc6 {[%clk 0:00:18]}  Rc8 {[%clk 0:00:38]} 28. Qb6+ {[%clk 0:00:17]}  Qb7 {[%clk 0:00:38]} 29. Qxb7+ {[%clk 0:00:12]}  Kxb7 {[%clk 0:00:39]} 30. Bd4 {[%clk 0:00:12]}  Bxd4 {[%clk 0:00:31]} 31. Nxd4 {[%clk 0:00:13]}  Rh8 {[%clk 0:00:31]} 32. Kf2 {[%clk 0:00:14]}  Rxh7 {[%clk 0:00:31]} 33. Ne4 {[%clk 0:00:13]}  Kb6 {[%clk 0:00:27]} 34. Nf3 {[%clk 0:00:11]}  Rh5 {[%clk 0:00:25]} 35. Nf6 {[%clk 0:00:10]}  Ra5 {[%clk 0:00:23]} 36. Nd4 {[%clk 0:00:05]}  Rxa2 {[%clk 0:00:22]} 37. Ke3 {[%clk 0:00:06]}  a5 {[%clk 0:00:22]} 38. Nd7+ {[%clk 0:00:06]}  Kc7 {[%clk 0:00:18]} 39. Ne5 {[%clk 0:00:07]}  f6 {[%clk 0:00:17]} 40. Nc4 {[%clk 0:00:07]}  e5 {[%clk 0:00:16]} 41. Nb5+ {[%clk 0:00:06]}  Kc6 {[%clk 0:00:15]} 42. Na7+ {[%clk 0:00:05]}  Kc5 {[%clk 0:00:14]} 43. Kd3 {[%clk 0:00:05]}  e4+ {[%clk 0:00:11]} 44. Kc3 {[%clk 0:00:06]}  f5 {[%clk 0:00:10]} 45. g3 {[%clk 0:00:06]}  Ra1 {[%clk 0:00:05]} 46. Nc8 {[%clk 0:00:05]}  Rg1 {[%clk 0:00:05]} 47. N8d6 {[%clk 0:00:05]}  Rxg3+ {[%clk 0:00:05]} 48. Kb2 {[%clk 0:00:06]}  a4 {[%clk 0:00:04]} 49. Nxf5 {[%clk 0:00:05]}  Rf3 {[%clk 0:00:03]} 50. Nfe3 {[%clk 0:00:05]}  Kd4 {[%clk 0:00:02]} 51. c3+ {[%clk 0:00:04]}  Kd3 {[%clk 0:00:00]} 52. Ka3 {[%clk 0:00:01]} 1-0


[Site "https://www.chess.com"]

[Event "Titled Tuesday Blitz June 20 Early 2023"]
[White "Bazilius, Augustinas"]
[Black "ATM622"]
[WhiteFideId "12832251"]
[WhiteElo "1980"]
[BlackElo "2606"]
[Result "0-1"]
[Round "3"]
[TimeControl "180+2"]
[Date "2023.06.20"]
[WhiteClock "0:00:01"]
[BlackClock "0:00:09"]
[Board "117"]

1. d4 {[%clk 0:03:00]}  Nf6 {[%clk 0:02:58]} 2. c4 {[%clk 0:03:00]}  e6 {[%clk 0:02:58]} 3. Nf3 {[%clk 0:02:59]}  d5 {[%clk 0:02:57]} 4. g3 {[%clk 0:02:59]}  dxc4 {[%clk 0:02:58]} 5. Bg2 {[%clk 0:02:58]}  Bd7 {[%clk 0:02:57]} 6. Ne5 {[%clk 0:02:57]}  Bc6 {[%clk 0:02:58]} 7. Nxc6 {[%clk 0:02:56]}  Nxc6 {[%clk 0:02:57]} 8. e3 {[%clk 0:02:56]}  Qd7 {[%clk 0:02:57]} 9. O-O {[%clk 0:02:54]}  O-O-O {[%clk 0:02:57]} 10. Qa4 {[%clk 0:02:51]}  Nd5 {[%clk 0:02:56]} 11. Qxc4 {[%clk 0:02:51]}  h5 {[%clk 0:02:56]} 12. Nc3 {[%clk 0:02:47]}  h4 {[%clk 0:02:55]} 13. a4 {[%clk 0:01:55]}  f5 {[%clk 0:02:52]} 14. a5 {[%clk 0:01:51]}  a6 {[%clk 0:02:50]} 15. Nxd5 {[%clk 0:01:07]}  exd5 {[%clk 0:02:39]} 16. Qe2 {[%clk 0:01:06]}  Bd6 {[%clk 0:02:33]} 17. Qf3 {[%clk 0:01:03]}  Ne7 {[%clk 0:02:30]} 18. Bd2 {[%clk 0:01:03]}  g5 {[%clk 0:02:30]} 19. b4 {[%clk 0:01:01]}  g4 {[%clk 0:02:24]} 20. Qe2 {[%clk 0:01:02]}  hxg3 {[%clk 0:02:13]} 21. hxg3 {[%clk 0:01:03]}  Ng6 {[%clk 0:02:11]} 22. Rfb1 {[%clk 0:01:00]}  Rde8 {[%clk 0:02:06]} 23. Qd3 {[%clk 0:00:54]}  Re4 {[%clk 0:01:52]} 24. b5 {[%clk 0:00:52]}  axb5 {[%clk 0:01:36]} 25. a6 {[%clk 0:00:51]}  bxa6 {[%clk 0:01:30]} 26. Rxa6 {[%clk 0:00:51]}  Kd8 {[%clk 0:01:30]} 27. Ra8+ {[%clk 0:00:45]}  Ke7 {[%clk 0:01:30]} 28. Rxh8 {[%clk 0:00:46]}  Nxh8 {[%clk 0:01:31]} 29. Bxe4 {[%clk 0:00:47]}  fxe4 {[%clk 0:01:25]} 30. Qxb5 {[%clk 0:00:47]}  Qf5 {[%clk 0:01:24]} 31. Bb4 {[%clk 0:00:40]}  Nf7 {[%clk 0:01:19]} 32. Bxd6+ {[%clk 0:00:39]}  cxd6 {[%clk 0:01:20]} 33. Qb8 {[%clk 0:00:33]}  Kf6 {[%clk 0:01:05]} 34. Rb7 {[%clk 0:00:22]}  Qg6 {[%clk 0:00:39]} 35. Qf8 {[%clk 0:00:17]}  Qg7 {[%clk 0:00:37]} 36. Qe7+ {[%clk 0:00:08]}  Kg6 {[%clk 0:00:35]} 37. Qe6+ {[%clk 0:00:09]}  Qf6 {[%clk 0:00:35]} 38. Qxg4+ {[%clk 0:00:04]}  Ng5 {[%clk 0:00:35]} 39. Rb8 {[%clk 0:00:03]}  Qf7 {[%clk 0:00:23]} 40. Qh4 {[%clk 0:00:02]}  Nf3+ {[%clk 0:00:22]} 41. Kg2 {[%clk 0:00:02]}  Nxh4+ {[%clk 0:00:23]} 42. gxh4 {[%clk 0:00:03]}  Qf3+ {[%clk 0:00:23]} 43. Kg1 {[%clk 0:00:03]}  Kh5 {[%clk 0:00:20]} 44. Rh8+ {[%clk 0:00:03]}  Kg4 {[%clk 0:00:18]} 45. Rg8+ {[%clk 0:00:03]}  Kxh4 {[%clk 0:00:18]} 46. Rh8+ {[%clk 0:00:03]}  Kg4 {[%clk 0:00:18]} 47. Rg8+ {[%clk 0:00:03]}  Kh5 {[%clk 0:00:18]} 48. Rh8+ {[%clk 0:00:04]}  Kg6 {[%clk 0:00:19]} 49. Rg8+ {[%clk 0:00:04]}  Kf7 {[%clk 0:00:19]} 50. Rg3 {[%clk 0:00:05]}  Qd1+ {[%clk 0:00:17]} 51. Kg2 {[%clk 0:00:05]}  Kf6 {[%clk 0:00:17]} 52. Rh3 {[%clk 0:00:04]}  Qg4+ {[%clk 0:00:14]} 53. Rg3 {[%clk 0:00:04]}  Qh5 {[%clk 0:00:14]} 54. Rg8 {[%clk 0:00:02]}  Ke7 {[%clk 0:00:13]} 55. Rg7+ {[%clk 0:00:02]}  Kd8 {[%clk 0:00:12]} 56. Rg3 {[%clk 0:00:01]}  Kc7 {[%clk 0:00:12]} 57. Rg7+ {[%clk 0:00:02]}  Kc6 {[%clk 0:00:12]} 58. Rg3 {[%clk 0:00:02]}  Kb5 {[%clk 0:00:12]} 59. Rg8 {[%clk 0:00:02]}  Kc4 {[%clk 0:00:11]} 60. Rg3 {[%clk 0:00:02]}  Kd3 {[%clk 0:00:11]} 61. Kf1 {[%clk 0:00:02]}  Qh1+ {[%clk 0:00:11]} 62. Rg1 {[%clk 0:00:02]}  Qh3+ {[%clk 0:00:11]} 63. Ke1 {[%clk 0:00:02]}  Qf3 {[%clk 0:00:09]} 64. Rg3 {[%clk 0:00:01]}  Qe2# {[%clk 0:00:09]} 0-1


[Site "https://www.chess.com"]

[Event "Titled Tuesday Blitz June 20 Early 2023"]
[White "Iskusnyh, Sergei"]
[Black "Heinemann, Josefine"]
[WhiteFideId "4120027"]
[BlackFideId "12900460"]
[WhiteElo "2492"]
[BlackElo "2342"]
[Result "1-0"]
[Round "3"]
[TimeControl "180+2"]
[Date "2023.06.20"]
[WhiteClock "0:00:46"]
[BlackClock "0:00:01"]
[Board "120"]

1. d4 {[%clk 0:03:00]}  d5 {[%clk 0:02:56]} 2. c4 {[%clk 0:03:00]}  c6 {[%clk 0:02:55]} 3. Nf3 {[%clk 0:03:00]}  Nf6 {[%clk 0:02:54]} 4. e3 {[%clk 0:03:01]}  Bf5 {[%clk 0:02:48]} 5. Nc3 {[%clk 0:03:01]}  e6 {[%clk 0:02:42]} 6. Nh4 {[%clk 0:03:01]}  Be4 {[%clk 0:02:42]} 7. f3 {[%clk 0:03:00]}  Bg6 {[%clk 0:02:42]} 8. Bd2 {[%clk 0:03:00]}  Nbd7 {[%clk 0:02:37]} 9. Nxg6 {[%clk 0:02:58]}  hxg6 {[%clk 0:02:36]} 10. Qc2 {[%clk 0:02:57]}  Qc7 {[%clk 0:02:24]} 11. O-O-O {[%clk 0:02:55]}  dxc4 {[%clk 0:02:17]} 12. Bxc4 {[%clk 0:02:54]}  b5 {[%clk 0:02:17]} 13. Bxe6 {[%clk 0:02:33]}  fxe6 {[%clk 0:02:15]} 14. Nxb5 {[%clk 0:02:33]}  Qb6 {[%clk 0:02:07]} 15. Qxg6+ {[%clk 0:02:32]}  Kd8 {[%clk 0:02:04]} 16. Nc3 {[%clk 0:02:31]}  Rb8 {[%clk 0:02:01]} 17. Qc2 {[%clk 0:02:30]}  Be7 {[%clk 0:01:42]} 18. Kb1 {[%clk 0:02:24]}  Ke8 {[%clk 0:01:30]} 19. Ne4 {[%clk 0:02:18]}  Nxe4 {[%clk 0:01:25]} 20. fxe4 {[%clk 0:02:16]}  Nf6 {[%clk 0:01:25]} 21. e5 {[%clk 0:02:08]}  Ne4 {[%clk 0:01:23]} 22. Bc1 {[%clk 0:02:03]}  Ba3 {[%clk 0:01:05]} 23. Ka1 {[%clk 0:02:01]}  Rf8 {[%clk 0:00:36]} 24. Rhf1 {[%clk 0:01:44]}  Rxf1 {[%clk 0:00:32]} 25. Rxf1 {[%clk 0:01:43]}  Qb5 {[%clk 0:00:28]} 26. Rd1 {[%clk 0:01:38]}  Ng5 {[%clk 0:00:18]} 27. bxa3 {[%clk 0:01:29]}  Rb7 {[%clk 0:00:17]} 28. h4 {[%clk 0:01:19]}  Nf7 {[%clk 0:00:17]} 29. a4 {[%clk 0:01:14]}  Qa6 {[%clk 0:00:16]} 30. Ba3 {[%clk 0:01:12]}  Nd8 {[%clk 0:00:15]} 31. h5 {[%clk 0:01:04]}  Kd7 {[%clk 0:00:14]} 32. g4 {[%clk 0:01:02]}  Kc8 {[%clk 0:00:13]} 33. g5 {[%clk 0:01:02]}  Rc7 {[%clk 0:00:07]} 34. Bd6 {[%clk 0:01:01]}  Rb7 {[%clk 0:00:07]} 35. h6 {[%clk 0:01:00]}  gxh6 {[%clk 0:00:07]} 36. gxh6 {[%clk 0:01:00]}  Qa5 {[%clk 0:00:05]} 37. Rc1 {[%clk 0:00:53]}  Qa6 {[%clk 0:00:03]} 38. h7 {[%clk 0:00:46]}  Qa5 {[%clk 0:00:01]} 1-0


[Site "https://www.chess.com"]

[Event "Titled Tuesday Blitz June 20 Early 2023"]
[White "Budrewicz, Krzysztof"]
[Black "Begunov, Konstantin"]
[WhiteFideId "1127950"]
[BlackFideId "4118510"]
[WhiteElo "2230"]
[BlackElo "1993"]
[Result "1-0"]
[Round "3"]
[TimeControl "180+2"]
[Date "2023.06.20"]
[WhiteClock "0:01:05"]
[BlackClock "0:00:00"]
[Board "123"]

1. d4 {[%clk 0:03:00]}  d5 {[%clk 0:01:32]} 2. c4 {[%clk 0:02:59]}  c6 {[%clk 0:01:33]} 3. Nf3 {[%clk 0:02:59]}  Nf6 {[%clk 0:01:34]} 4. Nbd2 {[%clk 0:02:58]}  Bf5 {[%clk 0:01:33]} 5. Qb3 {[%clk 0:02:48]}  Qc7 {[%clk 0:01:29]} 6. Nh4 {[%clk 0:02:36]}  Bc8 {[%clk 0:01:20]} 7. g3 {[%clk 0:02:36]}  e6 {[%clk 0:01:20]} 8. Bg2 {[%clk 0:02:36]}  Be7 {[%clk 0:01:20]} 9. O-O {[%clk 0:02:36]}  O-O {[%clk 0:01:16]} 10. Nhf3 {[%clk 0:02:35]}  Nbd7 {[%clk 0:01:16]} 11. a4 {[%clk 0:02:33]}  a5 {[%clk 0:01:07]} 12. Rd1 {[%clk 0:02:33]}  b6 {[%clk 0:01:03]} 13. Qc2 {[%clk 0:02:20]}  Ba6 {[%clk 0:00:50]} 14. b3 {[%clk 0:02:20]}  Bb4 {[%clk 0:00:47]} 15. Bb2 {[%clk 0:02:19]}  Rac8 {[%clk 0:00:43]} 16. Rac1 {[%clk 0:02:18]}  Qb8 {[%clk 0:00:40]} 17. Ne5 {[%clk 0:02:16]}  Nxe5 {[%clk 0:00:35]} 18. dxe5 {[%clk 0:02:16]}  Nd7 {[%clk 0:00:36]} 19. f4 {[%clk 0:02:16]}  Nc5 {[%clk 0:00:27]} 20. Bd4 {[%clk 0:02:04]}  Rfd8 {[%clk 0:00:26]} 21. Bf2 {[%clk 0:02:00]}  Bxd2 {[%clk 0:00:19]} 22. Rxd2 {[%clk 0:02:00]}  dxc4 {[%clk 0:00:19]} 23. Rxd8+ {[%clk 0:01:58]}  Rxd8 {[%clk 0:00:20]} 24. bxc4 {[%clk 0:01:57]}  Qc7 {[%clk 0:00:14]} 25. h4 {[%clk 0:01:50]}  h6 {[%clk 0:00:14]} 26. Bf3 {[%clk 0:01:49]}  Qd7 {[%clk 0:00:13]} 27. Be3 {[%clk 0:01:46]}  Qc7 {[%clk 0:00:12]} 28. Kf2 {[%clk 0:01:46]}  Qd7 {[%clk 0:00:12]} 29. Rb1 {[%clk 0:01:42]}  Qc7 {[%clk 0:00:12]} 30. Rd1 {[%clk 0:01:39]}  Rxd1 {[%clk 0:00:11]} 31. Qxd1 {[%clk 0:01:39]}  Qd7 {[%clk 0:00:12]} 32. Qxd7 {[%clk 0:01:36]}  Nxd7 {[%clk 0:00:13]} 33. Bxc6 {[%clk 0:01:36]}  Nc5 {[%clk 0:00:13]} 34. Bxc5 {[%clk 0:01:35]}  bxc5 {[%clk 0:00:12]} 35. Bb5 {[%clk 0:01:34]}  Bb7 {[%clk 0:00:12]} 36. g4 {[%clk 0:01:33]}  Kf8 {[%clk 0:00:11]} 37. f5 {[%clk 0:01:31]}  Ke7 {[%clk 0:00:11]} 38. Ke3 {[%clk 0:01:30]}  Bg2 {[%clk 0:00:10]} 39. Kf4 {[%clk 0:01:29]}  Bf1 {[%clk 0:00:10]} 40. e3 {[%clk 0:01:29]}  Be2 {[%clk 0:00:10]} 41. Ba6 {[%clk 0:01:25]}  Bd3 {[%clk 0:00:10]} 42. e4 {[%clk 0:01:24]}  Bc2 {[%clk 0:00:10]} 43. Bb5 {[%clk 0:01:23]}  Bd3 {[%clk 0:00:10]} 44. Ke3 {[%clk 0:01:23]}  Bf1 {[%clk 0:00:09]} 45. g5 {[%clk 0:01:23]}  Bh3 {[%clk 0:00:07]} 46. Kf4 {[%clk 0:01:15]}  Bg2 {[%clk 0:00:07]} 47. f6+ {[%clk 0:01:08]}  Kf8 {[%clk 0:00:06]} 48. h5 {[%clk 0:01:04]}  hxg5+ {[%clk 0:00:05]} 49. Kxg5 {[%clk 0:01:04]}  Bxe4 {[%clk 0:00:05]} 50. fxg7+ {[%clk 0:01:05]}  Kxg7 {[%clk 0:00:06]} 51. h6+ {[%clk 0:01:05]}  Kh7 {[%clk 0:00:05]} 52. Kf6 {[%clk 0:01:06]}  Kxh6 {[%clk 0:00:03]} 53. Kxf7 {[%clk 0:01:05]}  Bf5 {[%clk 0:00:03]} 54. Kf6 {[%clk 0:01:06]}  Kh5 {[%clk 0:00:02]} 55. Bd7 {[%clk 0:01:06]}  Bc2 {[%clk 0:00:00]} 56. Kxe6 {[%clk 0:01:05]} 1-0


[Site "https://www.chess.com"]

[Event "Titled Tuesday Blitz June 20 Early 2023"]
[White "Matveeva, Olga"]
[Black "Gontcharov, Vladislav"]
[WhiteFideId "24107018"]
[BlackFideId "4123492"]
[WhiteElo "2009"]
[BlackElo "2420"]
[Result "0-1"]
[Round "3"]
[TimeControl "180+2"]
[Date "2023.06.20"]
[WhiteClock "0:00:01"]
[BlackClock "0:00:36"]
[Board "124"]

1. d4 {[%clk 0:03:00]}  Nf6 {[%clk 0:02:59]} 2. c4 {[%clk 0:03:01]}  c5 {[%clk 0:02:59]} 3. d5 {[%clk 0:03:01]}  e6 {[%clk 0:02:59]} 4. Nc3 {[%clk 0:03:00]}  exd5 {[%clk 0:03:00]} 5. cxd5 {[%clk 0:03:01]}  d6 {[%clk 0:03:00]} 6. e4 {[%clk 0:03:01]}  g6 {[%clk 0:03:00]} 7. h3 {[%clk 0:03:02]}  Bg7 {[%clk 0:03:00]} 8. Nf3 {[%clk 0:03:02]}  O-O {[%clk 0:03:00]} 9. Bd3 {[%clk 0:03:03]}  b5 {[%clk 0:02:57]} 10. Nxb5 {[%clk 0:03:01]}  Re8 {[%clk 0:02:56]} 11. O-O {[%clk 0:02:59]}  Nxe4 {[%clk 0:02:55]} 12. Bxe4 {[%clk 0:02:48]}  Rxe4 {[%clk 0:02:53]} 13. Bg5 {[%clk 0:02:38]}  Qd7 {[%clk 0:02:38]} 14. Nc3 {[%clk 0:02:35]}  Re8 {[%clk 0:02:20]} 15. Re1 {[%clk 0:02:29]}  Na6 {[%clk 0:02:15]} 16. Ne4 {[%clk 0:02:10]}  Nc7 {[%clk 0:02:11]} 17. Nf6+ {[%clk 0:02:07]}  Bxf6 {[%clk 0:02:11]} 18. Bxf6 {[%clk 0:02:08]}  Ba6 {[%clk 0:01:48]} 19. Qd2 {[%clk 0:02:04]}  Qf5 {[%clk 0:01:46]} 20. Bc3 {[%clk 0:01:54]}  f6 {[%clk 0:01:41]} 21. Rad1 {[%clk 0:01:47]}  Rxe1+ {[%clk 0:01:26]} 22. Nxe1 {[%clk 0:01:48]}  Re8 {[%clk 0:01:23]} 23. g4 {[%clk 0:01:36]}  Qg5 {[%clk 0:01:11]} 24. Nf3 {[%clk 0:00:47]}  Qxd2 {[%clk 0:01:10]} 25. Rxd2 {[%clk 0:00:48]}  Kf7 {[%clk 0:01:05]} 26. g5 {[%clk 0:00:45]}  f5 {[%clk 0:01:00]} 27. Kg2 {[%clk 0:00:44]}  Bb7 {[%clk 0:01:00]} 28. Kg3 {[%clk 0:00:42]}  Nxd5 {[%clk 0:01:00]} 29. h4 {[%clk 0:00:36]}  Re4 {[%clk 0:00:59]} 30. Nh2 {[%clk 0:00:32]}  Ke6 {[%clk 0:00:48]} 31. f3 {[%clk 0:00:32]}  Ra4 {[%clk 0:00:44]} 32. Bg7 {[%clk 0:00:29]}  Rxa2 {[%clk 0:00:44]} 33. Re2+ {[%clk 0:00:28]}  Kd7 {[%clk 0:00:43]} 34. h5 {[%clk 0:00:25]}  a5 {[%clk 0:00:43]} 35. h6 {[%clk 0:00:20]}  a4 {[%clk 0:00:42]} 36. Nf1 {[%clk 0:00:19]}  a3 {[%clk 0:00:41]} 37. f4 {[%clk 0:00:10]}  c4 {[%clk 0:00:37]} 38. Nh2 {[%clk 0:00:01]}  c3 {[%clk 0:00:36]} 0-1


[Site "https://www.chess.com"]

[Event "Titled Tuesday Blitz June 20 Early 2023"]
[White "zsizsi99"]
[Black "Arencibia Monduy, Antonio"]
[BlackFideId "3507939"]
[WhiteElo "2440"]
[BlackElo "2588"]
[Result "0-1"]
[Round "3"]
[TimeControl "180+2"]
[Date "2023.06.20"]
[WhiteClock "0:00:11"]
[BlackClock "0:01:18"]
[Board "126"]

1. e4 {[%clk 0:03:00]}  e6 {[%clk 0:02:59]} 2. d4 {[%clk 0:02:56]}  d5 {[%clk 0:02:59]} 3. Nd2 {[%clk 0:02:57]}  dxe4 {[%clk 0:02:58]} 4. Nxe4 {[%clk 0:02:57]}  Nd7 {[%clk 0:02:59]} 5. Nf3 {[%clk 0:02:15]}  Ngf6 {[%clk 0:02:59]} 6. Qe2 {[%clk 0:02:07]}  Nxe4 {[%clk 0:02:50]} 7. Qxe4 {[%clk 0:02:07]}  Nf6 {[%clk 0:02:49]} 8. Qe2 {[%clk 0:02:04]}  Be7 {[%clk 0:02:43]} 9. Bd2 {[%clk 0:02:05]}  O-O {[%clk 0:02:43]} 10. O-O-O {[%clk 0:02:05]}  b6 {[%clk 0:02:40]} 11. h4 {[%clk 0:02:02]}  Bb7 {[%clk 0:02:39]} 12. h5 {[%clk 0:02:01]}  h6 {[%clk 0:02:26]} 13. g4 {[%clk 0:01:47]}  Qd5 {[%clk 0:02:13]} 14. Bg2 {[%clk 0:01:30]}  Qxa2 {[%clk 0:02:12]} 15. Bc3 {[%clk 0:01:05]}  Ne4 {[%clk 0:01:58]} 16. Qxe4 {[%clk 0:00:46]}  Bxe4 {[%clk 0:01:54]} 17. Kd2 {[%clk 0:00:46]}  Qd5 {[%clk 0:01:46]} 18. Rh3 {[%clk 0:00:45]}  Bg5+ {[%clk 0:01:40]} 19. Ke2 {[%clk 0:00:40]}  Rad8 {[%clk 0:01:32]} 20. Ra1 {[%clk 0:00:32]}  c5 {[%clk 0:01:22]} 21. Rg3 {[%clk 0:00:16]}  cxd4 {[%clk 0:01:18]} 22. Bxd4 {[%clk 0:00:11]}  Bxf3+ {[%clk 0:01:18]} 0-1


[Site "https://www.chess.com"]

[Event "Titled Tuesday Blitz June 20 Early 2023"]
[White "Sowul, Bartosz"]
[Black "Mrudul Dehankar"]
[WhiteFideId "1137590"]
[BlackFideId "25096990"]
[WhiteElo "2188"]
[BlackElo "2139"]
[Result "1-0"]
[Round "3"]
[TimeControl "180+2"]
[Date "2023.06.20"]
[WhiteClock "0:00:22"]
[BlackClock "0:00:00"]
[Board "131"]

1. e4 {[%clk 0:03:00]}  c6 {[%clk 0:02:57]} 2. d4 {[%clk 0:03:00]}  d5 {[%clk 0:02:56]} 3. e5 {[%clk 0:03:01]}  Bf5 {[%clk 0:02:52]} 4. h4 {[%clk 0:03:01]}  h5 {[%clk 0:02:50]} 5. Bd3 {[%clk 0:03:01]}  Bxd3 {[%clk 0:02:48]} 6. Qxd3 {[%clk 0:03:02]}  Qa5+ {[%clk 0:02:46]} 7. Nd2 {[%clk 0:03:01]}  e6 {[%clk 0:02:44]} 8. Nf3 {[%clk 0:03:01]}  Ne7 {[%clk 0:02:42]} 9. O-O {[%clk 0:02:56]}  Nf5 {[%clk 0:02:40]} 10. Nb3 {[%clk 0:02:49]}  Qb5 {[%clk 0:02:31]} 11. Qd1 {[%clk 0:02:45]}  Be7 {[%clk 0:02:27]} 12. g3 {[%clk 0:02:36]}  Nd7 {[%clk 0:02:17]} 13. a4 {[%clk 0:02:34]}  Qa6 {[%clk 0:02:13]} 14. Bg5 {[%clk 0:02:32]}  Rc8 {[%clk 0:01:59]} 15. c3 {[%clk 0:02:29]}  c5 {[%clk 0:01:59]} 16. dxc5 {[%clk 0:02:02]}  Bxc5 {[%clk 0:01:33]} 17. Nfd4 {[%clk 0:01:48]}  Bxd4 {[%clk 0:01:18]} 18. Nxd4 {[%clk 0:01:35]}  g6 {[%clk 0:00:40]} 19. Nxf5 {[%clk 0:01:19]}  gxf5 {[%clk 0:00:38]} 20. Re1 {[%clk 0:01:18]}  Rc4 {[%clk 0:00:29]} 21. Re3 {[%clk 0:00:51]}  Kf8 {[%clk 0:00:20]} 22. b3 {[%clk 0:00:49]}  Re4 {[%clk 0:00:20]} 23. Rxe4 {[%clk 0:00:44]}  fxe4 {[%clk 0:00:20]} 24. c4 {[%clk 0:00:44]}  Qc6 {[%clk 0:00:15]} 25. Rc1 {[%clk 0:00:42]}  Nxe5 {[%clk 0:00:12]} 26. Bf6 {[%clk 0:00:37]}  Nf3+ {[%clk 0:00:11]} 27. Kg2 {[%clk 0:00:35]}  Rh6 {[%clk 0:00:11]} 28. cxd5 {[%clk 0:00:32]}  Qe8 {[%clk 0:00:05]} 29. d6 {[%clk 0:00:22]}  Rxf6 {[%clk 0:00:00]} 30. d7 {[%clk 0:00:22]} 1-0


[Site "https://www.chess.com"]